{"text_format":"1","workbook":"xlsx","n_sheets":4,"sheets":["Informe de compatibilidad","Bienes Muebles - Municipio","Bienes Inmuebles - Municipio","Hoja1"],"not_rendered":{"charts":0,"images":0,"macros":0,"external_links":0,"defined_names":2,"comments":0,"pivot_tables":0},"unopened":[],"bounds":{"document_bytes":16777216,"sheet_cells":100000,"rows_first":2000,"rows_last":500,"rows_between":2000,"halvings":0,"cell_chars":16384,"cell_head_chars":4096},"cells_cut":0,"cells_raw":0,"read":"whole","date_system":"1900"}

{"sheet":"Informe de compatibilidad","index":0,"n_rows":0,"n_cols":0,"rows_kept":0,"cut":false,"hidden":false,"merged":[]}

{"sheet":"Bienes Muebles - Municipio","index":1,"n_rows":133,"n_cols":16,"rows_kept":133,"cut":false,"hidden":false,"merged":[[119,0,119,5],[7,15,9,15],[8,10,8,14],[7,0,9,0],[7,1,9,1],[7,2,9,2],[7,3,9,3],[7,4,9,4],[7,5,9,5],[7,10,7,14],[7,9,9,9],[7,8,9,8],[7,7,9,7],[7,6,9,6]]}
[]
[]
[]
[null,null,null,null,null,null,null,null,null,null,null,null,null,null," "]
[]
[]
[]
["CUENTA","FECHA DE ADQUISICION","No. CHEQUE","BIEN ADQUIRIDO","No. DE FACTURA","PROVEEDOR","MARCA","MODELO","No. DE SERIE","UNIDAD ADMINISTRATIVA","IMPORTE  ",null,null,null,null,"OBSERVACIONES"]
[null,null,null,null,null,null,null,null,null,null,"RECURSO CON QUE FUE ADQUIRIDO"]
[null,null,null,null,null,null,null,null,null,null,"GASTO CORRIENTE","FONDO III","FONDO IV","OTROS","TOTAL"]
["1241-1-5111","MOBILIARIO"]
["1241-1-5111","2020-01-15","TRANSF.","10 SILLAS EJECUTIVAS",435,"ELIZABETH ROMERO GUEVARA","-","-","-","PRESIDENTE, TESORERIA, OBRA P. ADMINISTRATIVA, DIF MPAL.",null,null,34800,null,{"$f":"SUM(K12:N12)","v":34800}]
["1241-1-5111","2020-08-26","TRANSF.","1 PODIUM","AB 2275","ALUMINIO Y ACRILICOS DEL CENTRO, S.A. DE C.V.","-","-","-","TESORERIA",4060,null,null,null,{"$f":"SUM(K13:N13)","v":4060}]
["1241-1-5111","2020-09-09","TRANSF.","1 SILLA SECRETARIAL","A 29","MA. HORTENCIA DE LIRA RAMIREZ","-","-","-","SECRETARIA",1972,null,null,null,{"$f":"SUM(K14:N14)","v":1972},"PASIVO PAGADO EL DIA 14/OCTUBRE/2020"]
["1241-1-5111","2020-09-09","TRANSF.","1 SILLA SECRETARIAL","A 29","MA. HORTENCIA DE LIRA RAMIREZ","-","-","-","SECRETARIA",1972,null,null,null,{"$f":"SUM(K15:N15)","v":1972},"PASIVO PAGADO EL DIA 14/OCTUBRE/2021"]
["1241-1-5111","2020-09-09","TRANSF.","1 SILLA SECRETARIAL","A 29","MA. HORTENCIA DE LIRA RAMIREZ","-","-","-","TESORERIA",2285.1999999999998,null,null,null,{"$f":"SUM(K16:N16)","v":2285.1999999999998},"PASIVO PAGADO EL DIA 14/OCTUBRE/2022"]
["1241-1-5111","2020-11-05","CH/8033","1 LIBRERO","B 05","ELEAZAR JUAREZ RINCON","-","-","-","TESORERIA: CATASTRO",5220,null,null,null,{"$f":"SUM(K17:N17)","v":5220}]
["1241-1-5112","EQUIPO DE ADMINISTRACIÓN"]
[]
[]
["1241-2-5121","MUEBLES, EXCEPTO DE OFICINA Y ESTANTERÍA"]
[]
[]
["1241-3-5151","BIENES INFORMÁTICOS"]
["1241-3-5151","2020-01-28","TRANSF. ","1 MULTIFUNCIONAL","4F24","ALEJANDRO CASTILLO LUEVANO ","EPSON","I3100","-","SECRETARIA",3683,null,null,null,{"$f":"SUM(K25:N25)","v":3683}]
["1241-3-5151","2020-03-13","TRANSF. ","1 COMPUTADORA","825E","ALEJANDRO CASTILLO LUEVANO ","WIN",8,"-","CONTRALORIA",8120,null,null,null,{"$f":"SUM(K26:N26)","v":8120}]
["1241-3-5151","2020-05-01","TRANSF. ","1 TABLET","A-564","ELIZABETH ROMERO GUEVARA","STYLOS","-","-","TESORERIA: TRANSPARENCIA",1274.8399999999999,null,null,null,{"$f":"SUM(K27:N27)","v":1274.8399999999999}]
["1241-3-5151","2020-05-01","TRANSF. ","1 TABLET","A-564","ELIZABETH ROMERO GUEVARA","LENOVO","-","-","TESORERIA: TRANSPARENCIA",2270.12,null,null,null,{"$f":"SUM(K28:N28)","v":2270.12}]
["1241-3-5151","2020-05-06","TRANSF. ","1 COMPUTADORA, 1 ADAPTADOR USB",1576,"ALEJANDRO CASTILLO LUEVANO ","WIN","-","-","SEGURIDAD PUBLICA",null,null,6206,null,{"$f":"SUM(K29:N29)","v":6206}]
["1241-3-5151","2020-05-13","TRANSF. ","1 IMPRESORA",537,"MARTHA CECILIA CANDELAS VALADEZ","EPSON","L3110","-","TESORERIA: SINDICATURA",3712,null,null,null,{"$f":"SUM(K30:N30)","v":3712}]
["1241-3-5151","2020-07-17","TRANSF. ","1 LAPTOP","A-631","ELIZABETH ROMERO GUEVARA","HP-CELERON","-","-","TESORERIA: TRANSPARENCIA",8642,null,null,null,{"$f":"SUM(K31:N31)","v":8642}]
["1241-3-5151","2020-07-25","TRANSF. ","1 LAPTOP","A-636","ELIZABETH ROMERO GUEVARA","-","-","-","INMUVI",11000,null,null,null,{"$f":"SUM(K32:N32)","v":11000}]
["1241-3-5151","2020-12-28","TRANSF. ","1 COMPUTADORA DE ESCRITORIO","FF1F","ALEJANDRO CASTILLO LUEVANO ","HACER TRUEBASIX","-","-","SECRETARIA",null,null,7540,null,{"$f":"SUM(K33:N33)","v":7540}]
[]
["1241-4-5191","OTROS MOBILIARIOS Y EQUIPOS DE ADMINISTRACIÓN"]
["1241-4-5191","2020-11-20","TRANSF.","1 LICUADORA","A 462","J. JESUS GUERRERO ORTIZ","-","-","-","DIF MPAL.",690,null,null,null,{"$f":"SUM(K36:N36)","v":690}]
["1241-4-5191","2020-12-03","TRANSF.","1 CAFETERA","A 1404","JONATHAN ENRIQUE SANABRIA BECERRIL","-","-","-","TESORERIA: DESARROLLO SOCIAL",2030,null,null,null,{"$f":"SUM(K37:N37)","v":2030}]
[]
["1242-1-5211","OTROS MOBILIARIOS Y EQUIPOS DE ADMINISTRACION "]
["1242-1-5211","2020-09-24","CH/7986","1 PEDESTAL MICROFONO",11612,"CASA DE MUSICA SANTA CECILIA S.A. DE C.V.","HERCULES","-","-","TESORERIA",1523,null,null,null,{"$f":"SUM(K40:N40)","v":1523}]
[]
[]
[]
["1242-3-5231","CÁMARAS FOTOGRÁFICAS Y DE VIDEO"]
[]
[]
["1242-9-5291","OTRO MOBILIARIO Y EQUIPO EDUCACIONAL Y RECREATIVO"]
[]
[]
["1243-1-5311","EQUIPO MÉDICO Y DE LABORATORIO"]
[]
[]
[]
["1243-2-5321","INSTRUMENTAL MÉDICO Y DE LABORATORIO"]
[]
[]
["1244-1-5411","AUTOMÓVILES Y EQUIPO TERRESTRE"]
["1244-1-5411","2020-02-10","CH/7758","1 CAMIONETA","-","J. GUADALUPE ESQUIVEL GUEVARA","FORD F-150",2001,"-","TESORERIA: OFICIALIA MAYOR",30000,null,null,null,{"$f":"SUM(K58:N58)","v":30000}]
["1244-1-5411","2020-02-28","TRANSF.","1 CARRO","-","SERVICIO DE ADMINISTRACION Y ENAJENACION DE BIENES","FORD FUSHION ",2008,"3FAHP08108R189214","AYUNTAMIENTO",17635.66,null,null,null,{"$f":"SUM(K59:N59)","v":17635.66}]
["1244-1-5411","2020-02-28","TRANSF.","1 CARRO","-","SERVICIO DE ADMINISTRACION Y ENAJENACION DE BIENES","FORD FOCUS",2009,"1FAHP35N59W122440","AYUNTAMIENTO",17127.310000000001,null,null,null,{"$f":"SUM(K60:N60)","v":17127.310000000001}]
["1244-1-5411","2020-02-28","TRANSF.","1 CAMIONETA","-","SERVICIO DE ADMINISTRACION Y ENAJENACION DE BIENES","NISSAN FRONTIER",2006,"1N6AD07U86C444376","AYUNTAMIENTO",18736.14,null,null,null,{"$f":"SUM(K61:N61)","v":18736.14}]
["1244-1-5411","2020-12-03","TRANSF.","1 CAMIONETA","-","NORA CRUZ DIAZ DE LEON","FORD ESCAPE",2006,"-","DIF MPAL.",null,null,65000,null,{"$f":"SUM(K62:N62)","v":65000}]
["1244-2-5421","CARROCERÍAS Y REMOLQUES"]
[]
[]
["1244-9-5491","OTROS EQUIPOS DE TRANSPORTE"]
[]
[]
["1244-5-5451","EMBARCACIONES"]
[]
[]
["1245-0-5511","EQUIPO DE SEGURIDAD PÚBLICA"]
[]
[]
["1246-1-5611","MAQUINARIA Y EQUIPO AGROPECUARIO"]
[]
[]
["1246-2-5621","MAQUINARIA Y EQUIPO INDUSTRIAL"]
["1246-2-5621","2020-12-02","CH/8066","1 BOMBA SUMERGIBLE","DA8B","HOME DEPOT MEXICO S. DE R.L. DE C.V.","-","TIPO BALA 1.5hp","-","OBRA P.: ESPACIO DEPORTIVO (EMPASTADO)",4149,null,null,null,{"$f":"SUM(K79:N79)","v":4149}]
[]
["1246-3-5631","MAQUINARIA Y EQUIPO DE CONSTRUCCIÓN"]
[]
[]
["1246-4-5641","SISTEMAS DE AIRE ACONDICIONADO, CALEFACCIÓN Y DE REFRIGERACIÓN INDUSTRIAL Y COMERCIAL"]
[]
[]
["1246-5-5651","EQUIPOS Y APARATOS DE COMUNICACIÓN Y TELECOMUNICACIÓN"]
[]
[]
[]
[]
[]
["1246-6-5661","MAQUINARIA Y EQUIPO ELECTRICO Y ELECTRONICO "]
[]
[]
[]
[]
["1246-7-5672","RERACCIONES"]
[]
[]
["1246-9-5691","OTROS EQUIPOS"]
[]
[]
["1247-1-5131","BIENES ARTÍSTICOS Y CULTURALES"]
[]
[]
[]
["1247-2-5141","OBJETOS DE VALOR"]
[]
[]
["1251-0-5911","SOFTWARE"]
[]
[]
[]
[]
[]
[]
[]
[]
["TOTAL",null,null,null,null,null,null,null,null,null,{"$f":"SUM(K12:K119)","v":146102.27000000002},{"$f":"SUM(L12:L119)","v":0},{"$f":"SUM(M12:M119)","v":113546},{"$f":"SUM(N12:N119)","v":0},{"$f":"SUM(O12:O119)","v":259648.26999999996}]
[]
[]
[]
[]
[]
[]
[]
[]
[]
[]
[]
["NOTA.-EN RELACIÓN CON LO REGISTRADO EN EL S.A.C.G. EN BIENES MUEBLES POR UN MONTO DE $682,039.95 EXISTE UNA DIFERENCIA EN ESTE REPORTE POR LA CANTIDAD DE $64,233.28.00, DEBIDO A QUE ESTE IMPORTE CORRESPONDE A APOYOS A LAS DELEGACIONES "]
["DE HORCONES Y MONTESA DE ESTE MUNICIPIO, REGISTRADOS EN CTA.-8270-561-206001-310-5621-2, SEGÚN PÓLIZAS, SEGÚN PÓLIZAS C01680 Y C01699."]

{"sheet":"Bienes Inmuebles - Municipio","index":2,"n_rows":33,"n_cols":13,"rows_kept":33,"cut":false,"hidden":false,"merged":[[32,1,32,6],[6,7,6,11],[6,12,8,12],[7,7,7,11],[6,1,8,1],[6,2,8,2],[6,3,8,3],[6,4,8,4],[6,5,8,5],[6,6,8,6]]}
[]
[]
[]
[]
[]
[]
[null,"CUENTA","FECHA DE ADQUISICION","No. CHEQUE","DESCRIPCION DEL BIEN","UBICACIÓN ","No. Y FECHA DE ESCRITURA PÚBLICA","IMPORTE  ",null,null,null,null,"OBSERVACIONES"]
[null,null,null,null,null,null,null,"RECURSO CON QUE FUE ADQUIRIDO"]
[null,null,null,null,null,null,null,"GASTO CORRIENTE","FONDO III","FONDO IV","OTROS","TOTAL"]
[null,"1231-0-5811","TERRENOS"]
[null,null,null,null,null,null,null,"$","$","$","$",{"$f":"SUM(H11:J11)","v":0}]
[]
[null,null,null,null,null,null,null,null,null,null,null,{"$f":"SUM(H13:J13)","v":0}]
[null,"1232-0-5821","VIVIENDAS"]
[null,null,null,null,null,null,null,"$","$","$","$",{"$f":"SUM(H15:J15)","v":0}]
[]
[null,null,null,null,null,"                         \"NO HUBO MOVIMIENTO\"",null,null,null,null,null,{"$f":"SUM(H17:J17)","v":0}]
[null,"1233-0-5831","EDIFICIOS NO RESIDENCIALES"]
[null,null,null,null,null,null,null,"$","$","$","$",{"$f":"SUM(H19:J19)","v":0}]
[]
[null,null,null,null,null,null,null,null,null,null,null,{"$f":"SUM(H21:J21)","v":0}]
[null,"1239-0-5891","OTROS BIENES INMUEBLES"]
[null,"1239-0-5891","2020-01-07","TRANSF","TERRENO","EJIDO AGUAGORDITA, VILLA GARCIA","-",300000,"$","$","$",{"$f":"SUM(H23:J23)","v":300000}]
[]
[]
[null,null,null,null,null,null,null,null,null,null,null,{"$f":"SUM(H26:J26)","v":0}]
[]
[null,null,null,null,null,null,null,"$","$","$","$",{"$f":"SUM(H28:J28)","v":0}]
[null,null,null,null,null,null,null,null,null,null,null,{"$f":"SUM(H29:J29)","v":0}]
[]
[null,null,null,null,null,null,null,"$","$","$","$",{"$f":"SUM(H31:J31)","v":0}]
[null,null,null,null,null,null,null,null,null,null,null,{"$f":"SUM(H32:J32)","v":0}]
[null,"TOTAL",null,null,null,null,null,{"$f":"SUM(H10:H32)","v":300000},{"$f":"SUM(I10:I32)","v":0},{"$f":"SUM(J10:J32)","v":0},{"$f":"SUM(K10:K32)","v":0},{"$f":"SUM(L10:L32)","v":300000}]

{"sheet":"Hoja1","index":3,"n_rows":0,"n_cols":0,"rows_kept":0,"cut":false,"hidden":false,"merged":[]}